[Event "CZE-ch Amateurs 2022"]
[Site "Luhacovice"]
[Date "2022.03.17"]
[Round "7.1"]
[White "Kratochvil, Josef"]
[Black "Buchcar, Tomas"]
[Result "0-1"]
[ECO "B15"]
[WhiteElo "2200"]
[BlackElo "2121"]
[Annotator "ChessBase"]
[PlyCount "84"]
[EventDate "2022.03.12"]
[EventType "swiss"]
[EventCountry "CZE"]
[SourceTitle "playchess.com"]
[Source "ChessBase"]
[SourceQuality "1"]
[TimeControl "5400+30"]

1. e4 {[%emt 0:00:05]} c6 {[%emt 0:00:05]} 2. d4 {[%emt 0:00:28]} d5 {[%emt 0:00:05]} 3. Nc3 {[%emt 0:00:06]} dxe4 {[%emt 0:00:11]} 4. Nxe4 {[%emt 0:00:06]} Nf6 {[%emt 0:00:05]} 5. Nxf6+ {[%emt 0:00:58]} exf6 {[%emt 0:00:10]} 6. c3 {[%emt 0:02:15]} Bd6 {[%emt 0:00:20]} 7. Bd3 {[%emt 0:00:10]} O-O {[%emt 0:01:05]} 8. Qc2 {[%emt 0:01:10]} Re8+ {[%emt 0:04:55]} 9. Ne2 {[%emt 0:03:34]} h6 {[%emt 0:00:48]} 10. Be3 {[%emt 0:05:40]} Be6 {[%emt 0:01:30]} 11. O-O {[%emt 0:05:00]} Qc7 {[%emt 0:01:23]} 12. h3 {[%emt 0:07:04]} Nd7 {[%emt 0:00:24]} 13. c4 {[%emt 0:06:04]} Nf8 {[%emt 0:06:20]} 14. Rfd1 {[%emt 0:15:03]} Rad8 {[%emt 0:12:46]} 15. Rac1 {[%emt 0:05:32]} Qb8 {[%emt 0:04:11]} 16. a3 {[%emt 0:06:21]} a6 {[%emt 0:01:49]} 17. Qd2 {[%emt 0:05:09]} Ng6 {[%emt 0:05:33]} 18. Bxg6 {[%emt 0:08:46]} fxg6 {[%emt 0:00:07]} 19. Bf4 {[%emt 0:00:07]} g5 {[%emt 0:04:56]} 20. Bxd6 {[%emt 0:02:32]} Qxd6 {[%emt 0:00:10]} 21. Rc3 {[%emt 0:02:36]} b5 {[%emt 0:03:35]} 22. cxb5 {[%emt 0:01:55]} cxb5 {[%emt 0:00:08]} 23. Re3 {[%emt 0:02:26]} f5 {[%emt 0:01:16]} 24. Qb4 {[%emt 0:09:08]} f4 {[%emt 0:05:11]} 25. Qxd6 {[%emt 0:00:38]} Rxd6 {[%emt 0:00:08]} 26. Re5 {[%emt 0:00:28]} Red8 {[%emt 0:01:50]} 27. h4 {[%emt 0:03:20]} f3 {[%emt 0:06:27]} 28. gxf3 {[%emt 0:01:45]} gxh4 {[%emt 0:00:39]} 29. Re4 {[%emt 0:04:39]} Bd5 {[%emt 0:04:29]} 30. Kg2 {[%emt 0:01:09]} Rg6+ {[%emt 0:04:11]} 31. Kh3 {[%emt 0:00:48]} Rf8 {[%emt 0:02:05]} 32. Rf4 {[%emt 0:00:23]} Bxf3 {[%emt 0:01:08]} 33. Rd2 {[%emt 0:00:34]} Rxf4 {[%emt 0:04:14]} 34. Nxf4 {[%emt 0:00:04]} Rf6 {[%emt 0:00:06]} 35. Nd3 {[%emt 0:00:45]} g5 {[%emt 0:00:33]} 36. Ne5 {[%emt 0:00:38]} Be4 {[%emt 0:00:57]} 37. Re2 {[%emt 0:00:55]} Rf4 {[%emt 0:00:38]} 38. Kh2 {[%emt 0:00:24]} Bd5 {[%emt 0:01:37]} 39. Nd7 {[%emt 0:00:39]} Kf7 {[%emt 0:02:21]} 40. Nc5 {[%emt 0:00:34]} Rxd4 {[%emt 0:00:32]} 41. Nxa6 {[%emt 0:00:17]} Rd1 {[%emt 0:00:15]} 42. Kh3 {[%emt 0:00:10]} Bf3 {[%emt 0:00:06]} 0-1

[Event "CZE-ch Amateurs 2022"]
[Site "Luhacovice"]
[Date "2022.03.17"]
[Round "7.2"]
[White "Mudrak, Josef"]
[Black "Gabriel, Adam"]
[Result "1/2-1/2"]
[ECO "A34"]
[WhiteElo "2219"]
[BlackElo "2097"]
[Annotator "ChessBase"]
[PlyCount "39"]
[EventDate "2022.03.12"]
[EventType "swiss"]
[EventCountry "CZE"]
[SourceTitle "playchess.com"]
[Source "ChessBase"]
[SourceQuality "1"]
[TimeControl "5400+30"]

1. c4 {[%emt 0:00:07]} Nf6 {[%emt 0:00:50]} 2. Nf3 {[%emt 0:00:30]} c5 {[%emt 0:00:15]} 3. g3 {[%emt 0:00:37]} d5 {[%emt 0:01:52]} 4. Bg2 {[%emt 0:02:30]} Nc6 {[%emt 0:03:01]} 5. cxd5 {[%emt 0:00:51]} Nxd5 {[%emt 0:00:07]} 6. O-O {[%emt 0:00:33]} e5 {[%emt 0:02:18]} 7. Nc3 {[%emt 0:02:56]} Nc7 {[%emt 0:05:43]} 8. d3 {[%emt 0:03:19]} Be7 {[%emt 0:00:56]} 9. Be3 {[%emt 0:04:54]} O-O {[%emt 0:00:58]} 10. Nd2 {[%emt 0:04:06]} Nd4 {[%emt 0:14:31]} 11. Nc4 {[%emt 0:02:05]} f6 {[%emt 0:00:28]} 12. Rc1 {[%emt 0:08:29]} Rb8 {[%emt 0:13:38]} 13. f4 {[%emt 0:01:22]} exf4 {[%emt 0:04:43]} 14. Bxf4 {[%emt 0:02:56]} Nde6 {[%emt 0:10:32]} 15. Be3 {[%emt 0:07:34]} b6 {[%emt 0:05:32]} 16. Bf2 {[%emt 0:06:37]} Bb7 {[%emt 0:07:14]} 17. e4 {[%emt 0:00:16]} Nd4 {[%emt 0:05:02]} 18. g4 {[%emt 0:03:42]} Qd7 {[%emt 0:02:33]} 19. Ne3 {[%emt 0:04:01]} Bd6 {[%emt 0:00:42]} 20. Ncd5 {[%emt 0:04:27]} 1/2-1/2

[Event "CZE-ch Amateurs 2022"]
[Site "Luhacovice"]
[Date "2022.03.17"]
[Round "7.3"]
[White "Zvolensky, David"]
[Black "Zelbova, Lada"]
[Result "1-0"]
[ECO "B85"]
[WhiteElo "2159"]
[BlackElo "1905"]
[Annotator "ChessBase"]
[PlyCount "45"]
[EventDate "2022.03.12"]
[EventType "swiss"]
[EventCountry "CZE"]
[SourceTitle "playchess.com"]
[Source "ChessBase"]
[SourceQuality "1"]
[TimeControl "5400+30"]

1. e4 {[%emt 0:00:01]} c5 {[%emt 0:00:07]} 2. Nf3 {[%emt 0:00:04]} e6 {[%emt 0:00:06]} 3. d4 {[%emt 0:00:22]} cxd4 {[%emt 0:00:05]} 4. Nxd4 {[%emt 0:00:03]} Nf6 {[%emt 0:00:06]} 5. Nc3 {[%emt 0:01:01]} d6 {[%emt 0:00:07]} 6. Be3 {[%emt 0:01:07]} a6 {[%emt 0:00:12]} 7. Be2 {[%emt 0:05:40]} Be7 {[%emt 0:02:38]} 8. O-O {[%emt 0:00:15]} O-O {[%emt 0:00:07]} 9. f4 {[%emt 0:00:04]} Qc7 {[%emt 0:01:20]} 10. Bf3 {[%emt 0:00:32]} Nc6 {[%emt 0:00:40]} 11. Qe2 {[%emt 0:04:28]} Rd8 {[%emt 0:06:13]} 12. Qf2 {[%emt 0:01:28]} Nd7 {[%emt 0:11:34]} 13. Rad1 {[%emt 0:03:17]} Na5 {[%emt 0:05:48]} 14. f5 {[%emt 0:07:46]} Ne5 {[%emt 0:03:47]} 15. Nxe6 {[%emt 0:00:50]} Nxf3+ {[%emt 0:02:34]} 16. gxf3 {[%emt 0:00:24]} fxe6 {[%emt 0:00:43]} 17. Bb6 {[%emt 0:00:05]} Qc4 {[%emt 0:05:40]} 18. Bxa5 {[%emt 0:01:01]} Rf8 {[%emt 0:00:10]} 19. b3 {[%emt 0:01:11]} Qc6 {[%emt 0:00:48]} 20. fxe6 {[%emt 0:00:47]} Bxe6 {[%emt 0:00:13]} 21. Nd5 {[%emt 0:00:28]} Bd8 {[%emt 0:08:01]} 22. Bxd8 {[%emt 0:00:10]} Raxd8 {[%emt 0:00:08]} 23. Ne7+ {[%emt 0:00:03]} 1-0

[Event "CZE-ch Amateurs 2022"]
[Site "Luhacovice"]
[Date "2022.03.17"]
[Round "7.4"]
[White "Taus, Martin"]
[Black "Pilch, Roman"]
[Result "1/2-1/2"]
[ECO "E65"]
[WhiteElo "2017"]
[BlackElo "2136"]
[Annotator "ChessBase"]
[PlyCount "26"]
[EventDate "2022.03.12"]
[EventType "swiss"]
[EventCountry "CZE"]
[SourceTitle "playchess.com"]
[Source "ChessBase"]
[SourceQuality "1"]
[TimeControl "5400+30"]

1. c4 {[%emt 0:00:06]} g6 {[%emt 0:01:29]} 2. Nf3 {[%emt 0:01:22]} Bg7 {[%emt 0:00:38]} 3. g3 {[%emt 0:00:27]} c5 {[%emt 0:01:08]} 4. Bg2 {[%emt 0:00:21]} Nf6 {[%emt 0:00:17]} 5. O-O {[%emt 0:03:00]} O-O {[%emt 0:00:10]} 6. d4 {[%emt 0:04:46]} d6 {[%emt 0:01:24]} 7. dxc5 {[%emt 0:13:38]} dxc5 {[%emt 0:01:30]} 8. Nc3 {[%emt 0:00:17]} Nc6 {[%emt 0:00:14]} 9. Be3 {[%emt 0:04:11]} Qa5 {[%emt 0:06:09]} 10. Qa4 {[%emt 0:09:52]} Qb4 {[%emt 0:06:52]} 11. Qb5 {[%emt 0:07:34]} Be6 {[%emt 0:08:47]} 12. Bxc5 {[%emt 0:19:31]} Qxc4 {[%emt 0:01:17]} 13. Qxc4 {[%emt 0:02:47]} Bxc4 {[%emt 0:00:23]} 1/2-1/2

[Event "CZE-ch Amateurs 2022"]
[Site "Luhacovice"]
[Date "2022.03.17"]
[Round "7.5"]
[White "Toman, Jan"]
[Black "Slepov, Kyryl"]
[Result "0-1"]
[ECO "C00"]
[WhiteElo "2127"]
[BlackElo "2064"]
[Annotator "ChessBase"]
[PlyCount "66"]
[EventDate "2022.03.12"]
[EventType "swiss"]
[EventCountry "CZE"]
[SourceTitle "playchess.com"]
[Source "ChessBase"]
[SourceQuality "1"]
[TimeControl "5400+30"]

1. Nf3 {[%emt 0:00:05]} Nf6 {[%emt 0:01:33]} 2. g3 {[%emt 0:00:19]} e6 {[%emt 0:03:02]} 3. Bg2 {[%emt 0:00:18]} d5 {[%emt 0:00:07]} 4. d3 {[%emt 0:00:27]} Be7 {[%emt 0:00:10]} 5. Nbd2 {[%emt 0:00:10]} O-O {[%emt 0:00:19]} 6. e4 {[%emt 0:00:34]} c5 {[%emt 0:00:44]} 7. e5 {[%emt 0:00:51]} Nfd7 {[%emt 0:00:13]} 8. O-O {[%emt 0:00:15]} Nc6 {[%emt 0:01:28]} 9. Re1 {[%emt 0:00:23]} Qc7 {[%emt 0:00:57]} 10. Qe2 {[%emt 0:00:19]} b5 {[%emt 0:05:48]} 11. Nf1 {[%emt 0:00:50]} a5 {[%emt 0:01:27]} 12. h4 {[%emt 0:03:05]} a4 {[%emt 0:01:49]} 13. a3 {[%emt 0:00:38]} b4 {[%emt 0:00:36]} 14. h5 {[%emt 0:01:47]} Nd4 {[%emt 0:06:54]} 15. Nxd4 {[%emt 0:01:36]} cxd4 {[%emt 0:00:08]} 16. h6 {[%emt 0:01:01]} g6 {[%emt 0:00:13]} 17. Bf4 {[%emt 0:00:57]} bxa3 {[%emt 0:01:00]} 18. Bxd5 {[%emt 0:02:04]} Ra5 {[%emt 0:03:14]} 19. Bxe6 {[%emt 0:06:45]} fxe6 {[%emt 0:02:12]} 20. bxa3 {[%emt 0:00:08]} Rc5 {[%emt 0:02:12]} 21. Qg4 {[%emt 0:05:59]} Rf5 {[%emt 0:05:53]} 22. Nd2 {[%emt 0:05:18]} Nxe5 {[%emt 0:02:44]} 23. Qe2 {[%emt 0:05:26]} Bb7 {[%emt 0:06:53]} 24. Ne4 {[%emt 0:09:47]} Rxc2 {[%emt 0:07:28]} 25. Qd1 {[%emt 0:00:34]} g5 {[%emt 0:08:12]} 26. Bxe5 {[%emt 0:01:23]} Rxe5 {[%emt 0:02:01]} 27. Rb1 {[%emt 0:09:46]} Bxe4 {[%emt 0:04:27]} 28. dxe4 {[%emt 0:04:07]} Qc3 {[%emt 0:02:16]} 29. Qh5 {[%emt 0:24:25]} Bf8 {[%emt 0:00:39]} 30. Red1 {[%emt 0:03:02]} Qc6 {[%emt 0:09:50]} 31. Rxd4 {[%emt 0:03:38]} Rxf2 {[%emt 0:02:57]} 32. Re1 {[%emt 0:08:48]} Qc2 {[%emt 0:02:42]} 33. Qh3 {[%emt 0:00:43]} Bc5 {[%emt 0:00:15]} 0-1

[Event "CZE-ch Amateurs 2022"]
[Site "Luhacovice"]
[Date "2022.03.17"]
[Round "7.6"]
[White "Horvath, Tomas"]
[Black "Jedlicka, Ales"]
[Result "1-0"]
[ECO "B22"]
[WhiteElo "2079"]
[BlackElo "2223"]
[Annotator "ChessBase"]
[PlyCount "113"]
[EventDate "2022.03.12"]
[EventType "swiss"]
[EventCountry "CZE"]
[SourceTitle "playchess.com"]
[Source "ChessBase"]
[SourceQuality "1"]
[TimeControl "5400+30"]

1. e4 {[%emt 0:00:05]} c5 {[%emt 0:00:15]} 2. d4 {[%emt 0:00:04]} cxd4 {[%emt 0:00:16]} 3. c3 {[%emt 0:00:05]} Nf6 {[%emt 0:00:17]} 4. e5 {[%emt 0:00:06]} Nd5 {[%emt 0:00:08]} 5. Nf3 {[%emt 0:00:06]} e6 {[%emt 0:00:16]} 6. Qxd4 {[%emt 0:01:03]} Nc6 {[%emt 0:00:23]} 7. Qe4 {[%emt 0:00:06]} d6 {[%emt 0:00:29]} 8. exd6 {[%emt 0:02:09]} Bxd6 {[%emt 0:00:54]} 9. Bd3 {[%emt 0:01:11]} Nf6 {[%emt 0:00:59]} 10. Qh4 {[%emt 0:09:05]} Be7 {[%emt 0:08:38]} 11. Bc2 {[%emt 0:02:41]} Qc7 {[%emt 0:04:38]} 12. O-O {[%emt 0:05:05]} Nd5 {[%emt 0:01:00]} 13. Qg4 {[%emt 0:03:56]} g6 {[%emt 0:01:09]} 14. Bg5 {[%emt 0:01:47]} e5 {[%emt 0:09:46]} 15. Qh4 {[%emt 0:04:43]} Be6 {[%emt 0:04:24]} 16. Bxe7 {[%emt 0:06:18]} Qxe7 {[%emt 0:00:24]} 17. Qa4 {[%emt 0:03:36]} O-O {[%emt 0:01:07]} 18. Re1 {[%emt 0:00:42]} f6 {[%emt 0:01:13]} 19. Nbd2 {[%emt 0:02:27]} Rfd8 {[%emt 0:05:18]} 20. Rad1 {[%emt 0:04:27]} Rac8 {[%emt 0:01:18]} 21. Qh4 {[%emt 0:02:52]} g5 {[%emt 0:05:03]} 22. Qh6 {[%emt 0:03:10]} Qg7 {[%emt 0:02:03]} 23. Qxg7+ {[%emt 0:00:16]} Kxg7 {[%emt 0:00:09]} 24. Ne4 {[%emt 0:01:15]} b6 {[%emt 0:07:27]} 25. Ng3 {[%emt 0:03:18]} Nde7 {[%emt 0:05:39]} 26. a3 {[%emt 0:06:10]} Na5 {[%emt 0:04:13]} 27. Nd2 {[%emt 0:11:34]} Rc7 {[%emt 0:01:36]} 28. Nde4 {[%emt 0:01:16]} Rxd1 {[%emt 0:04:31]} 29. Rxd1 {[%emt 0:00:35]} Bf7 {[%emt 0:11:57]} 30. Nd6 {[%emt 0:02:53]} Bg6 {[%emt 0:00:35]} 31. Bxg6 {[%emt 0:05:04]} Kxg6 {[%emt 0:00:11]} 32. Kf1 {[%emt 0:03:44]} a6 {[%emt 0:01:21]} 33. Ke2 {[%emt 0:01:25]} b5 {[%emt 0:04:02]} 34. Nge4 {[%emt 0:01:59]} Rc6 {[%emt 0:02:15]} 35. Ne8 {[%emt 0:02:30]} f5 {[%emt 0:02:45]} 36. Rd6+ {[%emt 0:02:32]} Kf7 {[%emt 0:00:44]} 37. Rxc6 {[%emt 0:00:37]} Nexc6 {[%emt 0:00:38]} 38. N4d6+ {[%emt 0:01:55]} Ke6 {[%emt 0:03:15]} 39. b4 {[%emt 0:00:31]} Nc4 {[%emt 0:04:55]} 40. Nxc4 {[%emt 0:00:09]} bxc4 {[%emt 0:00:10]} 41. Nc7+ {[%emt 0:00:09]} Kd6 {[%emt 0:00:18]} 42. Nxa6 {[%emt 0:00:07]} e4 {[%emt 0:00:25]} 43. a4 {[%emt 0:01:47]} f4 {[%emt 0:00:30]} 44. Nc5 {[%emt 0:00:26]} Kd5 {[%emt 0:00:25]} 45. Nd7 {[%emt 0:00:44]} g4 {[%emt 0:02:01]} 46. Nb6+ {[%emt 0:01:05]} Ke6 {[%emt 0:00:28]} 47. Nxc4 {[%emt 0:00:19]} Ne7 {[%emt 0:00:20]} 48. a5 {[%emt 0:01:34]} Kd5 {[%emt 0:00:46]} 49. a6 {[%emt 0:01:11]} Nc8 {[%emt 0:00:06]} 50. Na5 {[%emt 0:00:26]} h5 {[%emt 0:00:45]} 51. c4+ {[%emt 0:00:26]} Kd4 {[%emt 0:00:22]} 52. c5 {[%emt 0:00:49]} f3+ {[%emt 0:00:44]} 53. gxf3 {[%emt 0:00:21]} exf3+ {[%emt 0:00:17]} 54. Ke1 {[%emt 0:00:38]} Na7 {[%emt 0:01:05]} 55. Nb7 {[%emt 0:01:06]} Kc4 {[%emt 0:00:30]} 56. c6 {[%emt 0:00:52]} Kxb4 {[%emt 0:01:01]} 57. c7 {[%emt 0:01:15]} 1-0

[Event "CZE-ch Amateurs 2022"]
[Site "Luhacovice"]
[Date "2022.03.17"]
[Round "7.7"]
[White "Nemec, Pavel"]
[Black "Bokhnak, Timofey"]
[Result "1/2-1/2"]
[ECO "B40"]
[WhiteElo "2223"]
[BlackElo "1978"]
[Annotator "ChessBase"]
[PlyCount "121"]
[EventDate "2022.03.12"]
[EventType "swiss"]
[EventCountry "CZE"]
[SourceTitle "playchess.com"]
[Source "ChessBase"]
[SourceQuality "1"]
[TimeControl "5400+30"]

1. e4 {[%emt 0:00:03]} c5 {[%emt 0:00:10]} 2. Nc3 {[%emt 0:00:07]} e6 {[%emt 0:00:20]} 3. Nf3 {[%emt 0:01:54]} a6 {[%emt 0:00:26]} 4. g3 {[%emt 0:00:58]} Nc6 {[%emt 0:05:59]} 5. Bg2 {[%emt 0:00:25]} g6 {[%emt 0:02:48]} 6. d4 {[%emt 0:02:08]} cxd4 {[%emt 0:01:45]} 7. Nxd4 {[%emt 0:00:02]} Bg7 {[%emt 0:00:54]} 8. Be3 {[%emt 0:00:08]} Nge7 {[%emt 0:02:14]} 9. Nxc6 {[%emt 0:03:10]} Nxc6 {[%emt 0:04:53]} 10. O-O {[%emt 0:05:40]} O-O {[%emt 0:01:00]} 11. Bc5 {[%emt 0:00:37]} Re8 {[%emt 0:00:13]} 12. Qd2 {[%emt 0:16:07]} Ne5 {[%emt 0:08:10]} 13. b3 {[%emt 0:09:45]} Nc6 {[%emt 0:12:27]} 14. Rad1 {[%emt 0:02:40]} b5 {[%emt 0:05:46]} 15. e5 {[%emt 0:00:45]} Qa5 {[%emt 0:01:40]} 16. Bxc6 {[%emt 0:04:44]} dxc6 {[%emt 0:01:13]} 17. Qe3 {[%emt 0:00:08]} b4 {[%emt 0:10:47]} 18. Na4 {[%emt 0:02:19]} Rb8 {[%emt 0:04:27]} 19. Rfe1 {[%emt 0:22:47]} Bf8 {[%emt 0:02:29]} 20. Bd6 {[%emt 0:03:36]} Rb5 {[%emt 0:01:29]} 21. c4 {[%emt 0:00:38]} bxc3 {[%emt 0:03:13]} 22. Nxc3 {[%emt 0:00:02]} Bh6 {[%emt 0:02:24]} 23. Qf3 {[%emt 0:02:31]} Rb7 {[%emt 0:01:24]} 24. Ne4 {[%emt 0:01:48]} Bg7 {[%emt 0:00:08]} 25. Nc5 {[%emt 0:01:37]} Rb6 {[%emt 0:02:36]} 26. Na4 {[%emt 0:01:06]} Rb7 {[%emt 0:03:43]} 27. Nc5 {[%emt 0:02:13]} Rb6 {[%emt 0:00:23]} 28. Qe3 {[%emt 0:03:59]} Rb5 {[%emt 0:02:17]} 29. a4 {[%emt 0:01:05]} Rb4 {[%emt 0:00:07]} 30. Ne4 {[%emt 0:00:29]} Rb7 {[%emt 0:00:36]} 31. b4 {[%emt 0:00:18]} Qd8 {[%emt 0:00:32]} 32. Nc5 {[%emt 0:01:03]} Rxb4 {[%emt 0:01:22]} 33. Nxe6 {[%emt 0:00:13]} Bxe6 {[%emt 0:00:25]} 34. Bxb4 {[%emt 0:00:06]} Bd5 {[%emt 0:00:03]} 35. f4 {[%emt 0:01:12]} g5 {[%emt 0:00:29]} 36. Bc3 {[%emt 0:01:43]} gxf4 {[%emt 0:03:31]} 37. gxf4 {[%emt 0:00:02]} Bh6 {[%emt 0:03:56]} 38. Qg3+ {[%emt 0:01:01]} Kh8 {[%emt 0:01:27]} 39. e6+ {[%emt 0:02:20]} f6 {[%emt 0:00:02]} 40. Qh4 {[%emt 0:03:44]} Bg7 {[%emt 0:07:45]} 41. f5 {[%emt 0:00:23]} Qe7 {[%emt 0:00:35]} 42. Kf2 {[%emt 0:00:56]} Qc5+ {[%emt 0:00:09]} 43. Qd4 {[%emt 0:00:09]} Qd6 {[%emt 0:00:04]} 44. Rg1 {[%emt 0:03:04]} Qxh2+ {[%emt 0:01:12]} 45. Kf1 {[%emt 0:00:41]} Qh3+ {[%emt 0:00:08]} 46. Ke1 {[%emt 0:01:21]} Qxf5 {[%emt 0:00:02]} 47. Rxg7 {[%emt 0:00:46]} Kxg7 {[%emt 0:00:33]} 48. Qa7+ {[%emt 0:01:10]} Kh8 {[%emt 0:00:06]} 49. e7 {[%emt 0:00:17]} Rg8 {[%emt 0:00:49]} 50. Qd4 {[%emt 0:00:47]} Kg7 {[%emt 0:02:15]} 51. Kd2 {[%emt 0:00:18]} Kf7 {[%emt 0:00:16]} 52. Kc1 {[%emt 0:00:44]} Rg2 {[%emt 0:01:53]} 53. Bd2 {[%emt 0:00:35]} Rg4 {[%emt 0:00:12]} 54. Qe3 {[%emt 0:00:28]} Re4 {[%emt 0:00:26]} 55. Qg3 {[%emt 0:00:25]} Rc4+ {[%emt 0:01:11]} 56. Bc3 {[%emt 0:00:01]} Qg5+ {[%emt 0:00:25]} 57. Qxg5 {[%emt 0:00:08]} fxg5 {[%emt 0:00:02]} 58. Re1 {[%emt 0:00:24]} Re4 {[%emt 0:00:29]} 59. Rxe4 {[%emt 0:00:13]} Bxe4 {[%emt 0:00:02]} 60. Bf6 {[%emt 0:00:48]} g4 {[%emt 0:00:07]} 61. Bh4 {[%emt 0:00:10]} 1/2-1/2

[Event "CZE-ch Amateurs 2022"]
[Site "Luhacovice"]
[Date "2022.03.17"]
[Round "7.8"]
[White "Kupsa, Matej"]
[Black "Vanek, Ladislav"]
[Result "0-1"]
[ECO "B00"]
[WhiteElo "2097"]
[BlackElo "2221"]
[Annotator "ChessBase"]
[PlyCount "88"]
[EventDate "2022.03.12"]
[EventType "swiss"]
[EventCountry "CZE"]
[SourceTitle "playchess.com"]
[Source "ChessBase"]
[SourceQuality "1"]
[TimeControl "5400+30"]

1. e4 {[%emt 0:00:03]} b6 {[%emt 0:00:26]} 2. Nc3 {[%emt 0:02:17]} Bb7 {[%emt 0:00:14]} 3. f4 {[%emt 0:01:13]} e6 {[%emt 0:00:52]} 4. Nf3 {[%emt 0:02:23]} Bb4 {[%emt 0:02:02]} 5. d3 {[%emt 0:04:16]} d5 {[%emt 0:00:24]} 6. Bd2 {[%emt 0:03:04]} Nf6 {[%emt 0:14:17]} 7. e5 {[%emt 0:05:46]} Nfd7 {[%emt 0:00:06]} 8. Ne2 {[%emt 0:01:48]} Be7 {[%emt 0:01:33]} 9. g4 {[%emt 0:13:37]} c5 {[%emt 0:08:00]} 10. Ng3 {[%emt 0:00:15]} Nc6 {[%emt 0:00:35]} 11. c3 {[%emt 0:03:40]} Qc7 {[%emt 0:00:47]} 12. d4 {[%emt 0:00:27]} c4 {[%emt 0:06:51]} 13. f5 {[%emt 0:06:46]} b5 {[%emt 0:03:18]} 14. g5 {[%emt 0:09:43]} g6 {[%emt 0:16:41]} 15. fxe6 {[%emt 0:05:58]} fxe6 {[%emt 0:00:06]} 16. Bh3 {[%emt 0:02:40]} Nf8 {[%emt 0:00:29]} 17. a3 {[%emt 0:10:30]} Rg8 {[%emt 0:08:30]} 18. Bg4 {[%emt 0:01:03]} Bd8 {[%emt 0:01:13]} 19. h4 {[%emt 0:09:30]} Ne7 {[%emt 0:00:18]} 20. Qc2 {[%emt 0:00:30]} Bc6 {[%emt 0:01:52]} 21. Nf1 {[%emt 0:02:04]} Nf5 {[%emt 0:00:56]} 22. Ke2 {[%emt 0:01:53]} Be7 {[%emt 0:01:27]} 23. Bh3 {[%emt 0:00:23]} a5 {[%emt 0:00:36]} 24. Bf4 {[%emt 0:00:46]} Rg7 {[%emt 0:04:40]} 25. Ne3 {[%emt 0:00:06]} Rf7 {[%emt 0:02:04]} 26. Bh2 {[%emt 0:00:15]} Qb6 {[%emt 0:05:10]} 27. Ng4 {[%emt 0:01:01]} O-O-O {[%emt 0:00:13]} 28. Nf6 {[%emt 0:00:17]} Nd7 {[%emt 0:06:30]} 29. Bf4 {[%emt 0:00:21]} Qb7 {[%emt 0:00:34]} 30. Bg4 {[%emt 0:02:01]} Nc5 {[%emt 0:03:21]} 31. Bxf5 {[%emt 0:05:41]} gxf5 {[%emt 0:00:40]} 32. Rhg1 {[%emt 0:01:40]} Ne4 {[%emt 0:03:29]} 33. Nd2 {[%emt 0:00:47]} Qc7 {[%emt 0:03:53]} 34. Ndxe4 {[%emt 0:00:36]} dxe4 {[%emt 0:00:31]} 35. Qd2 {[%emt 0:00:54]} Kb7 {[%emt 0:01:38]} 36. g6 {[%emt 0:00:49]} hxg6 {[%emt 0:01:01]} 37. Rxg6 {[%emt 0:00:02]} Qc8 {[%emt 0:01:52]} 38. h5 {[%emt 0:01:19]} Rh8 {[%emt 0:00:53]} 39. h6 {[%emt 0:00:22]} Qf8 {[%emt 0:00:26]} 40. Bg5 {[%emt 0:00:39]} Qd8 {[%emt 0:01:03]} 41. Qf4 {[%emt 0:00:56]} e3 {[%emt 0:00:39]} 42. h7 {[%emt 0:00:58]} b4 {[%emt 0:00:00]} 43. Rg8 {[%emt 0:01:07]} Rfxh7 {[%emt 0:00:20]} 44. Nxh7 {[%emt 0:01:30]} Rxg8 {[%emt 0:00:07]} 0-1